bitfinex-derivatives/quotes_SOLF0:USTF0_20250202
["timestamp","ask_amount","ask_price","bid_price","bid_amount"]
[1738488194799,4.6801,213.72,213.7,0.03429613]
[1738488195293,0.03046025,213.75,213.7,0.03429613]
[1738488195498,4.6798,213.73,213.7,0.03429613]
[1738488195698,0.03046025,213.75,213.7,0.03429613]
[1738488196201,4.71006025,213.75,213.7,4.71479613]
[1738488196596,0.03046025,213.75,213.7,4.71479613]
[1738488196796,4.68,213.72,213.7,0.03429613]
[1738488197196,0.03046025,213.75,213.7,0.03429613]
[1738488197394,6.025e-05,213.75,213.74,13.80561659]
[1738488197795,25.75615672,213.85,213.8,4.6782]
[1738488198196,6.43903918,213.84,213.8,4.6782]
[1738488198601,6.43903918,213.84,213.82,4.6776]
[1738488200504,0.03157314,213.85,213.82,4.6776]
[1738488201208,0.03157314,213.85,213.81,9.16202163]
[1738488203406,0.03157314,213.85,213.82,4.6778]
[1738488203702,0.03157314,213.85,213.81,9.16202163]
[1738488203904,0.03157314,213.85,213.84,9.12601659]
[1738488204204,3.12,214.0,213.84,9.12601659]
[1738488204205,9.12601659,214.0,213.84,9.12601659]
[1738488204403,1.4119,213.99,213.84,9.12601659]
[1738488204798,1.4119,213.99,213.87,9.12601659]
[1738488205404,0.0303966,213.95,213.91,0.03439886]
[1738488209409,9.12601659,213.94,213.82,1.3986]
[1738488209604,9.12601659,213.94,213.81,9.12601659]
[1738488209805,2.9103,213.93,213.81,9.12601659]
[1738488210508,4.6759,213.91,213.84,4.6774]
[1738488210708,0.0346115,213.89,213.85,0.03370672]
[1738488211410,0.0346115,213.89,213.87,4.6767]
[1738488211605,0.0346115,213.89,213.85,0.03370672]
[1738488212909,0.0346115,213.89,213.86,4.677]
[1738488214011,0.0346115,213.89,213.85,0.03370672]
[1738488214813,0.0346115,213.89,213.88,4.6765]
[1738488217116,0.0346115,213.89,213.86,4.6768]
[1738488217312,0.0346115,213.89,213.85,0.03370672]
[1738488217712,4.7109115,213.89,213.85,0.03370672]
[1738488219017,0.0346115,213.89,213.85,0.03370672]
[1738488219214,4.6768,213.87,213.85,0.03370672]
[1738488219413,0.0346115,213.89,213.78,9.12601659]
[1738488219719,2.9317,213.9,213.78,13.80461659]
[1738488220218,2.9317,213.9,213.78,9.12601659]
[1738488220423,4.6771,213.86,213.8,4.6783]
[1738488220612,4.71045778,213.86,213.82,0.03208413]
[1738488222215,0.03335778,213.86,213.78,4.6785]
[1738488222811,4.6774,213.85,213.79,4.6784]
[1738488223017,0.03335778,213.86,213.81,9.12601659]
[1738488223519,0.03335778,213.86,213.81,9.1588303]
[1738488223921,0.03335778,213.86,213.85,4.6772]
[1738488224420,0.03335778,213.86,213.81,0.03281371]
[1738488225621,4.6774,213.84,213.81,0.03281371]
[1738488226213,4.71055778,213.86,213.81,0.03281371]
[1738488227211,0.03335778,213.86,213.81,9.1588303]
[1738488227717,0.03335778,213.86,213.85,4.6772]
[1738488227912,0.03335778,213.86,213.81,9.1588303]
[1738488228217,0.03335778,213.86,213.84,4.6774]
[1738488229519,0.03335778,213.86,213.81,9.1588303]
[1738488229821,0.03335778,213.86,213.85,4.6772]
[1738488230017,0.03335778,213.86,213.81,9.1588303]
[1738488230821,0.03335778,213.86,213.83,4.6775]
[1738488231416,0.03335778,213.86,213.81,0.03281371]
[1738488231923,4.6774,213.85,213.81,0.03281371]
[1738488232621,4.6778,213.82,213.81,0.03281371]
[1738488232822,2.8837,213.84,213.71,9.12601659]
[1738488233412,4.6783,213.81,213.73,4.6796]
[1738488233618,2.8837,213.84,213.73,4.6796]
[1738488234016,0.02992387,213.81,213.76,0.02962172]
[1738488234317,4.6787,213.78,213.76,0.02962172]
[1738488236622,4.6794,213.76,213.66,3.0092]
[1738488236818,9.12601659,213.79,213.66,3.0092]
[1738488237313,4.6795,213.75,213.67,4.6809]
[1738488237516,4.6795,213.75,213.66,3.0092]
[1738488237517,9.12601659,213.79,213.66,3.0092]
[1738488237721,0.03207845,213.73,213.65,9.12601659]
[1738488237917,4.68,213.72,213.66,4.6812]
[1738488239222,4.68,213.72,213.55,43.62425446]
[1738488239223,211.15,213.71,213.52,12.81826068]
[1738488239424,9.12601659,213.53,213.51,99.19222899]
[1738488239624,9.12601659,213.53,213.51,98.64822899]
[1738488239825,9.12601659,213.53,213.51,91.54252899]
[1738488240317,13.81021659,213.53,213.51,91.54252899]
[1738488240526,0.03207378,213.54,213.51,91.54252899]
[1738488241324,9.12601659,213.66,213.51,100.66854558]
[1738488241527,9.12601659,213.66,213.51,9.12601659]
[1738488241729,14.58880018,213.66,213.5,3.0137]
[1738488242529,0.03428927,213.6,213.56,0.03207378]
[1738488244230,0.03428927,213.6,213.5,3.0137]
[1738488244730,4.71708927,213.6,213.5,3.0137]
[1738488245123,4.71708927,213.6,213.5,7.6985]
[1738488245329,4.71708927,213.6,213.5,3.0137]
[1738488245930,4.71708927,213.6,213.51,4.6846]
[1738488247734,4.6836,213.56,213.45,1.4822]
[1738488248226,0.03485878,213.53,213.45,1.4822]
[1738488248826,0.03485878,213.53,213.47,4.6855]
[1738488249026,0.03485878,213.53,213.45,1.4822]
[1738488249229,4.71915878,213.53,213.45,1.4822]
[1738488249933,0.03485878,213.53,213.45,1.4822]
[1738488250435,4.6846,213.52,213.45,4.6858]
[1738488250635,0.03485878,213.53,213.41,1.5362]
[1738488250835,14.58880018,213.54,213.41,1.5362]
[1738488251034,0.03230303,213.49,213.41,1.5362]
[1738488251534,0.03230303,213.49,213.44,4.6862]
[1738488252133,0.03230303,213.49,213.39,1.4248]
[1738488252331,4.6864,213.43,213.35,4.6881]
[1738488252635,3.14,213.48,213.23,0.76884992]
[1738488252636,0.03155576,213.41,213.24,16.09480018]
[1738488252933,14.58880018,213.42,213.25,1.5379]
[1738488253135,0.0347557,213.35,213.25,1.5379]
[1738488254339,0.0347557,213.35,213.33,4.6885]
[1738488256335,14.58880018,213.46,213.28,14.58880018]
[1738488257537,0.03487599,213.39,213.35,0.03282418]
[1738488257936,0.03487599,213.39,213.37,4.6875]
[1738488259040,0.03487599,213.39,213.35,0.03282418]
[1738488262047,0.03487599,213.39,213.38,4.6875]
[1738488263547,14.58880018,213.51,213.36,1.4465]
[1738488263746,4.6856,213.47,213.36,1.4465]
[1738488263948,4.6856,213.47,213.37,1.5224]
[1738488264148,4.6856,213.47,213.41,4.6868]
[1738488264845,0.03525023,213.46,213.42,0.03237373]
[1738488265252,0.03525023,213.46,213.32,6.58231157]
[1738488265551,14.58880018,213.51,213.32,6.58231157]
[1738488265753,4.6861,213.45,213.39,4.6872]
[1738488266252,4.6857,213.46,213.41,4.6868]
[1738488266453,0.03359642,213.44,213.41,4.6868]
[1738488266747,0.03359642,213.44,213.4,0.03030091]
[1738488267751,0.03359642,213.44,213.4,4.71730091]
[1738488268850,0.03359642,213.44,213.41,4.6867]
[1738488269054,0.03359642,213.44,213.4,0.03030091]
[1738488270048,0.03359642,213.44,213.43,4.6864]
[1738488270351,14.58880018,213.55,213.4,0.03030091]
[1738488270558,4.6848,213.51,213.45,4.6857]
[1738488271055,14.58880018,213.55,213.45,4.6857]
[1738488271652,0.03377243,213.52,213.48,0.03606464]
[1738488272858,4.6849,213.5,213.48,0.03606464]
[1738488274754,0.03377243,213.52,213.48,0.03606464]
[1738488276759,0.03377243,213.52,213.48,4.72116464]
[1738488277552,0.03377243,213.52,213.48,0.03606464]
[1738488277759,4.71817243,213.52,213.48,0.03606464]
[1738488280362,9.12314154,213.51,213.48,0.03606464]
[1738488281056,4.6851,213.49,213.48,0.03606464]
[1738488285767,9.12314154,213.51,213.36,9.12314154]
[1738488285966,4.6854,213.48,213.36,9.12314154]
[1738488286167,4.6854,213.48,213.42,4.6864]
[1738488286367,4.6854,213.48,213.36,9.12314154]
[1738488286969,0.03100652,213.44,213.4,0.03485474]
[1738488287171,0.03100652,213.44,213.41,4.6867]
[1738488287670,0.03100652,213.44,213.4,0.03485474]
[1738488287870,0.03100652,213.44,213.4,4.72185474]
[1738488290774,4.71720652,213.44,213.4,0.03485474]
[1738488292771,0.03100652,213.44,213.4,0.03485474]
[1738488292975,4.6864,213.43,213.4,0.03485474]
[1738488297777,4.6867,213.42,213.4,0.03485474]
[1738488298278,4.6868,213.41,213.4,0.03485474]
[1738488300978,0.03100652,213.44,213.4,0.03485474]
[1738488302773,4.6864,213.43,213.4,0.03485474]
[1738488304078,4.6866,213.42,213.4,0.03485474]
[1738488304881,4.71740652,213.44,213.4,0.03485474]
[1738488305781,0.03100652,213.44,213.4,0.03485474]
[1738488305983,0.03100652,213.44,213.41,4.6868]
[1738488306473,0.03100652,213.44,213.4,4.72175474]
[1738488306679,0.03100652,213.44,213.4,0.03485474]
[1738488306982,0.03100652,213.44,213.38,9.12314154]
[1738488307173,9.12314154,213.49,213.38,9.12314154]
[1738488307378,9.12314154,213.49,213.35,9.12314154]
[1738488307983,0.03464608,213.44,213.35,9.12314154]
[1738488309982,4.72094608,213.44,213.38,4.6874]
[1738488310481,0.03464608,213.44,213.38,4.6874]
[1738488310687,4.6864,213.43,213.38,4.6874]
[1738488310880,0.03464608,213.44,213.3,4.4155]
[1738488311184,4.6873,213.39,213.3,4.4155]
[1738488311482,0.03441439,213.39,213.34,4.6884]
[1738488312084,0.03441439,213.39,213.35,4.6881]
[1738488317685,0.03441439,213.39,213.32,4.6887]
[1738488317984,0.03441439,213.39,213.3,4.4155]
[1738488318386,0.03441439,213.39,213.32,4.6887]
[1738488318586,0.03441439,213.39,213.3,4.4155]
[1738488319786,0.03441439,213.39,213.36,4.6878]
[1738488320387,0.03441439,213.39,213.32,9.12314154]
[1738488320581,0.03441439,213.39,213.38,4.6875]
[1738488320786,3.08,213.52,213.35,9.12314154]
[1738488321786,0.03605296,213.44,213.4,0.0345863]
[1738488325290,0.03605296,213.44,213.4,4.7216863]
[1738488327687,0.03605296,213.44,213.41,4.6868]
[1738488327891,4.72225296,213.44,213.4,0.0345863]
[1738488328491,4.72225296,213.44,213.39,4.6873]
[1738488330189,5.84383714,213.43,213.39,4.6873]
[1738488330794,5.84383714,213.41,213.33,5.84383714]
[1738488331083,5.84383714,213.39,213.33,5.84383714]
[1738488331293,10.56597415,213.39,213.34,4.6882]
[1738488331485,10.56597415,213.39,213.31,5.84383714]
[1738488331882,5.84383714,213.37,213.3,4.4155]
[1738488332082,5.84383714,213.37,213.33,4.6885]
[1738488332287,5.84383714,213.37,213.31,5.84383714]
[1738488332583,5.87867415,213.39,213.31,5.84383714]
[1738488333091,5.87867415,213.39,213.33,4.6885]
[1738488333391,5.87867415,213.39,213.31,5.84383714]
[1738488334089,5.87867415,213.39,213.34,4.6882]
[1738488334491,5.87867415,213.39,213.31,5.84383714]
[1738488334787,0.03483701,213.39,213.37,5.84383714]
[1738488335787,0.03483701,213.39,213.35,5.84383714]
[1738488336795,0.03483701,213.39,213.37,5.84383714]
[1738488337597,0.03483701,213.39,213.35,5.84383714]
[1738488337796,0.03483701,213.39,213.38,4.6875]
[1738488338296,0.03483701,213.39,213.33,5.84383714]
[1738488338498,5.84383714,213.38,213.35,4.6881]
[1738488339096,5.84383714,213.38,213.33,4.6884]
[1738488339399,5.84383714,213.38,213.31,5.84383714]
[1738488339897,5.84383714,213.38,213.33,4.6886]
[1738488340602,5.84383714,213.36,213.3,4.4155]
[1738488341897,5.84383714,213.36,213.32,4.6886]
[1738488342902,5.84383714,213.36,213.31,4.689]
[1738488347102,5.84383714,213.36,213.3,4.4155]
[1738488347294,5.84383714,213.36,213.32,4.6888]
[1738488348601,0.03483701,213.39,213.33,5.84383714]
[1738488349494,0.03483701,213.39,213.35,4.688]
[1738488349899,0.03483701,213.39,213.35,5.84383714]
[1738488350099,0.03483701,213.39,213.37,5.84383714]
[1738488350906,0.03483701,213.39,213.38,4.6875]
[1738488367411,0.03483701,213.39,213.35,5.84383714]
[1738488367613,5.84383714,213.37,213.29,5.84383714]
[1738488367815,5.84383714,213.35,213.27,5.84383714]
[1738488368014,5.87647271,213.35,213.27,5.84383714]
[1738488368920,10.56467271,213.35,213.27,10.53373714]
[1738488369218,10.56467271,213.35,213.27,5.84383714]
[1738488369516,5.87647271,213.35,213.28,4.6897]
[1738488370615,5.87647271,213.35,213.27,5.84383714]
[1738488370821,5.87647271,213.35,213.29,4.6895]
[1738488372522,5.87647271,213.35,213.29,10.53333714]
[1738488372821,5.87647271,213.35,213.3,4.6892]
[1738488373016,0.03263557,213.35,213.3,4.6892]
[1738488375430,0.03263557,213.35,213.29,5.84383714]
[1738488375431,0.03263557,213.35,213.31,4.689]
[1738488375825,0.03263557,213.35,213.29,5.84383714]
[1738488376124,0.03263557,213.35,213.34,4.6884]
[1738488381736,0.03263557,213.35,213.31,4.689]
[1738488382035,5.87647271,213.35,213.31,4.689]
[1738488383640,5.87647271,213.35,213.27,5.84383714]
[1738488383937,5.87647271,213.35,213.32,4.6888]
[1738488385236,5.84383714,213.33,213.26,0.5411576]
[1738488385535,5.84383714,213.31,213.26,0.5411576]
[1738488385936,0.03124198,213.31,213.28,4.6896]
[1738488386841,0.03124198,213.31,213.26,0.5411576]
[1738488387040,0.03124198,213.31,213.27,5.84383714]
[1738488387442,0.03124198,213.31,213.28,4.6897]
[1738488389846,0.03124198,213.31,213.29,4.6895]
[1738488390342,0.03124198,213.31,213.26,0.5411576]
[1738488390543,0.03124198,213.31,213.3,4.6893]
[1738488393749,5.84383714,213.39,213.34,4.6882]
[1738488394947,5.87716849,213.39,213.34,4.71976405]
[1738488397048,5.87716849,213.39,213.34,0.03156405]
[1738488397248,5.87716849,213.39,213.35,4.688]
[1738488399947,5.87716849,213.39,213.36,4.6879]
[1738488401048,5.87716849,213.39,213.35,4.6881]
[1738488405154,5.87716849,213.39,213.34,4.71986405]
[1738488405955,5.84383714,213.37,213.34,4.71986405]
[1738488406256,5.84383714,213.35,213.34,0.03156405]
[1738488408256,10.53203714,213.35,213.34,0.03156405]
[1738488409759,5.84383714,213.35,213.34,0.03156405]
[1738488414358,5.84383714,213.37,213.34,0.03156405]
[1738488416967,10.53153714,213.37,213.34,0.03156405]
[1738488417961,0.03333135,213.39,213.34,0.03156405]
[1738488418167,10.53203714,213.35,213.34,0.03156405]
[1738488419068,5.84383714,213.35,213.34,0.03156405]
[1738488420869,10.53203714,213.35,213.34,0.03156405]
[1738488421073,5.84383714,213.35,213.34,0.03156405]
[1738488422783,10.53203714,213.35,213.34,0.03156405]
[1738488428387,5.84383714,213.29,213.01,196.51174561]
[1738488428690,5.84383714,213.18,213.11,5.84383714]
[1738488429485,0.02958677,213.17,213.11,5.84383714]
[1738488429889,0.02958677,213.17,213.12,4.693]
[1738488430189,0.02958677,213.17,213.05,217.27380465]
[1738488430190,5.84383714,213.14,213.05,217.27380465]
[1738488430386,5.84383714,213.12,213.05,217.27380465]
[1738488430690,5.84383714,213.14,213.07,161.77762515]
[1738488430892,5.84383714,213.14,213.08,4.694]
[1738488431096,0.02972255,213.14,213.09,153.69034481]
[1738488431890,0.02972255,213.14,213.09,147.84650767]
[1738488432193,5.87355969,213.14,213.09,147.84650767]
[1738488432396,5.87355969,213.14,213.07,4.6942]
[1738488432592,5.87355969,213.14,213.07,10.53803714]
[1738488433188,5.87355969,213.14,213.07,5.84383714]
[1738488433393,0.02972255,213.14,213.09,4.6938]
[1738488433593,0.02972255,213.14,213.09,10.53763714]
[1738488433793,0.02972255,213.14,213.09,5.84383714]
[1738488433994,0.02972255,213.14,213.11,10.53723714]
[1738488434194,0.02972255,213.14,213.11,5.84383714]
[1738488434591,0.02972255,213.14,213.12,4.6931]
[1738488434892,5.84383714,213.2,213.13,5.84383714]
[1738488435094,5.84383714,213.22,213.15,5.84383714]
[1738488435293,5.84383714,213.22,213.18,4.6919]
[1738488435495,5.84383714,213.24,213.15,5.84383714]
[1738488435792,5.84383714,213.22,213.15,5.84383714]
[1738488435996,5.87614873,213.22,213.17,0.02972255]
[1738488436692,5.87614873,213.22,213.18,4.6917]
[1738488436893,5.87614873,213.22,213.17,0.02972255]
[1738488437898,5.87614873,213.22,213.19,4.6916]
[1738488442395,0.03231159,213.22,213.21,4.6912]
[1738488443899,5.84383714,213.26,213.19,5.84383714]
[1738488445002,0.0349553,213.25,213.19,5.84383714]
[1738488445203,0.0349553,213.25,213.24,4.6906]
[1738488447499,3.54549244,213.28,213.22,2.92912432]
[1738488447700,5.84383714,213.32,213.24,5.84383714]
[1738488448003,5.84383714,213.3,213.22,8.74303714]
[1738488448205,5.84383714,213.28,213.25,4.6901]
[1738488448400,5.84383714,213.28,213.22,8.74303714]
[1738488448802,0.03124266,213.27,213.23,0.03201914]
[1738488449806,0.03124266,213.27,213.26,4.6901]
[1738488463509,5.84383714,213.36,213.31,4.6888]
[1738488463714,5.84383714,213.38,213.29,5.84383714]
[1738488463909,5.84383714,213.36,213.29,5.84383714]
[1738488464115,5.84383714,213.34,213.29,4.6893]
[1738488464315,5.84383714,213.34,213.27,5.84383714]
[1738488464516,5.84383714,213.36,213.27,5.84383714]
[1738488464707,0.03494892,213.33,213.28,0.0322981]
[1738488465815,0.03494892,213.33,213.3,4.6891]
[1738488466817,0.03494892,213.33,213.28,0.0322981]
[1738488467016,0.03494892,213.33,213.31,4.689]
[1738488467717,0.03494892,213.33,213.29,4.6894]
[1738488467917,0.03494892,213.33,213.28,0.0322981]
[1738488468619,0.03494892,213.33,213.32,4.6888]
[1738488486233,5.84383714,213.42,213.38,4.6873]
[1738488486834,10.53023714,213.44,213.38,4.6873]
[1738488487132,5.84383714,213.4,213.31,5.84383714]
[1738488487327,5.84383714,213.38,213.31,5.84383714]
[1738488487532,10.53143714,213.38,213.33,0.03147838]
[1738488487834,0.03346243,213.37,213.33,0.03147838]
[1738488488735,0.03346243,213.37,213.33,4.72007838]
[1738488489933,0.03346243,213.37,213.33,0.03147838]
[1738488490133,5.84383714,213.34,213.33,0.03147838]
[1738488492537,5.84383714,213.36,213.33,0.03147838]
[1738488492737,0.03346243,213.37,213.33,0.03147838]
[1738488493537,5.84383714,213.36,213.33,0.03147838]
[1738488493732,5.84383714,213.36,213.33,4.71987838]
[1738488493937,5.84383714,213.36,213.33,0.03147838]
[1738488494838,0.03346243,213.37,213.33,0.03147838]
[1738488496840,5.84383714,213.36,213.33,0.03147838]
[1738488497842,10.53193714,213.36,213.33,0.03147838]
[1738488500143,5.84383714,213.36,213.33,0.03147838]
[1738488502147,0.03346243,213.37,213.33,0.03147838]
[1738488503654,4.6882,213.35,213.33,0.03147838]
[1738488504149,5.84383714,213.34,213.33,0.03147838]
[1738488505349,10.53223714,213.34,213.33,0.03147838]
[1738488511556,5.84383714,213.34,213.33,0.03147838]
[1738488511754,5.84383714,213.36,213.33,0.03147838]
[1738488512852,4.6884,213.34,213.33,0.03147838]
[1738488515354,10.53223714,213.34,213.33,0.03147838]
[1738488515653,4.69,213.27,213.22,4.6908]
[1738488515855,5.84383714,213.27,213.21,1.4715]
[1738488516245,4.6902,213.26,213.21,6.1625]
[1738488516450,5.84383714,213.27,213.21,1.4715]
[1738488516851,0.03052181,213.26,213.22,0.03559778]
[1738488517057,4.72062181,213.26,213.22,0.03559778]
[1738488520057,0.03052181,213.26,213.22,0.03559778]
[1738488522156,0.03052181,213.26,213.23,4.6907]
[1738488522357,0.03052181,213.26,213.22,0.03559778]
[1738488524862,0.03052181,213.26,213.22,4.72659778]
[1738488526958,0.03052181,213.26,213.23,4.6907]
[1738488528358,0.03052181,213.26,213.22,0.03559778]
[1738488528563,0.03052181,213.26,213.24,4.6905]
[1738488529665,0.03052181,213.26,213.25,4.6903]
[1738488530665,0.03052181,213.26,213.23,5.84383714]
[1738488530962,0.03052181,213.26,213.24,4.6905]
[1738488535561,0.03052181,213.26,213.22,0.03559778]
[1738488535865,0.03052181,213.26,213.22,4.72659778]
[1738488536066,0.03052181,213.26,213.22,0.03559778]
[1738488537765,0.03052181,213.26,213.22,4.72649778]
[1738488539167,0.03052181,213.26,213.23,4.6907]
[1738488548078,0.03052181,213.26,213.22,0.03559778]
[1738488548277,0.03052181,213.26,213.24,4.6906]
[1738488549974,0.03052181,213.26,213.22,0.03559778]
[1738488550179,0.03052181,213.26,213.25,10.53413714]
[1738488550477,5.84383714,213.35,213.25,5.84383714]
[1738488550679,10.53203714,213.35,213.3,4.6892]
[1738488551673,10.53203714,213.35,213.3,4.7205968]
[1738488551878,10.56715352,213.35,213.3,4.7205968]
[1738488556581,5.87895352,213.35,213.3,0.0313968]
[1738488556781,0.03511638,213.35,213.33,4.6886]
[1738488556982,0.03511638,213.35,213.31,5.84383714]
[1738488557677,0.03511638,213.35,213.34,4.6884]
[1738488564788,4.6866,213.42,213.37,4.6877]
[1738488565896,4.71767141,213.42,213.37,4.72204177]
[1738488567397,0.03107141,213.42,213.37,4.72204177]
[1738488569499,0.03107141,213.42,213.37,10.56587891]
[1738488569794,0.03107141,213.42,213.37,5.87817891]
[1738488571200,0.03107141,213.42,213.38,4.6875]
[1738488571901,0.03107141,213.42,213.37,0.03434177]
[1738488572097,0.03107141,213.42,213.41,10.53063714]
[1738488572600,0.03107141,213.42,213.39,5.84383714]
[1738488572800,0.03107141,213.42,213.37,5.87817891]
[1738488574204,0.03107141,213.42,213.39,4.6872]
[1738488574800,0.03107141,213.42,213.41,4.6868]
[1738488576905,0.03107141,213.42,213.41,10.53063714]
[1738488582210,5.84383714,213.51,213.46,4.6856]
[1738488583203,5.84383714,213.51,213.46,4.7195305]
[1738488583411,0.03436662,213.51,213.48,4.6853]
[1738488584311,0.03436662,213.51,213.47,4.6855]
[1738488584507,5.84383714,213.49,213.46,0.0339305]
[1738488584805,5.87820376,213.51,213.46,0.0339305]
[1738488585814,5.84383714,213.47,213.46,0.0339305]
[1738488586413,10.52933714,213.47,213.46,0.0339305]
[1738488587117,5.84383714,213.49,213.46,0.0339305]
[1738488589408,5.84383714,213.49,213.46,4.7196305]
[1738488589616,4.685,213.5,213.46,4.7196305]
[1738488589909,5.87820376,213.51,213.46,4.7196305]
[1738488590115,5.87820376,213.51,213.47,4.6855]
[1738488590810,5.87820376,213.51,213.46,0.0339305]
[1738488591014,5.87820376,213.51,213.48,4.6853]
[1738488591614,0.03436662,213.51,213.48,4.6853]
[1738488593617,0.03436662,213.51,213.49,4.6851]
[1738488593814,0.03436662,213.51,213.46,0.0339305]
[1738488595015,0.03436662,213.51,213.48,4.6853]
[1738488595516,0.03436662,213.51,213.46,0.0339305]
[1738488595517,0.03436662,213.51,213.5,4.6849]
[1738488597614,0.03436662,213.51,213.49,5.84383714]
[1738488597810,0.03436662,213.51,213.47,4.6855]
[1738488598008,0.03436662,213.51,213.46,0.0339305]
[1738488598210,4.71906662,213.51,213.46,0.0339305]
[1738488598408,10.56290376,213.51,213.46,0.0339305]
[1738488598811,5.87820376,213.51,213.46,0.0339305]
[1738488600016,0.03436662,213.51,213.46,4.7196305]
[1738488603711,5.84383714,213.47,213.46,0.0339305]
[1738488604417,5.84383714,213.47,213.38,1.4419]
[1738488604613,5.84383714,213.44,213.38,1.4419]
[1738488604819,5.84383714,213.44,213.39,4.6872]
[1738488605019,10.52973714,213.46,213.39,5.84383714]
[1738488605721,0.03238915,213.45,213.4,4.72071041]
[1738488606519,0.03238915,213.45,213.4,0.03371041]
[1738488606717,5.84383714,213.44,213.4,0.03371041]
[1738488607118,4.6864,213.43,213.4,0.03371041]
[1738488607313,5.84383714,213.42,213.4,0.03371041]
[1738488607520,5.84383714,213.36,213.26,9.62669873]
[1738488607719,5.84383714,213.33,213.26,9.62669873]
[1738488608019,5.84383714,213.37,213.27,5.84383714]
[1738488608519,0.03035591,213.34,213.3,0.03223592]
[1738488609819,5.84383714,213.33,213.3,0.03223592]
[1738488610030,5.84383714,213.31,213.3,0.03223592]
[1738488614325,0.03035591,213.34,213.3,0.03223592]
[1738488614720,4.71875591,213.34,213.3,0.03223592]
[1738488614923,5.84383714,213.33,213.3,0.03223592]
[1738488615625,5.84383714,213.31,213.3,0.03223592]
[1738488618627,10.53283714,213.31,213.3,0.03223592]
[1738488625028,4.6886,213.33,213.3,0.03223592]
[1738488625225,5.84383714,213.32,213.3,0.03223592]
[1738488626527,4.6888,213.33,213.3,0.03223592]
[1738488627525,4.6889,213.32,213.3,0.03223592]
[1738488627730,5.87419305,213.34,213.3,0.03223592]
[1738488627932,5.84383714,213.32,213.3,0.03223592]
[1738488628126,4.689,213.31,213.3,0.03223592]
[1738488637937,4.689,213.31,213.3,3.592e-05]
[1738488638138,5.84383714,213.32,213.2,1.5236]
[1738488638339,4.6906,213.24,213.2,1.5236]
[1738488639136,5.84383714,213.26,213.2,1.5236]
[1738488639335,0.03194002,213.24,213.2,6.24465998]
[1738488642837,4.72254002,213.24,213.2,6.24465998]
[1738488643338,0.03194002,213.24,213.2,6.24465998]
[1738488650548,0.03194002,213.24,213.21,4.6912]
[1738488654050,0.03194002,213.24,213.22,5.84383714]
[1738488654246,5.84383714,213.32,213.24,5.84383714]
[1738488654846,10.53283714,213.32,213.26,4.69]
[1738488655146,5.84383714,213.32,213.26,5.84383714]
[1738488655445,0.03472403,213.31,213.3,4.6892]
[1738488655650,5.84383714,213.36,213.3,4.6892]
[1738488655844,0.03395061,213.33,213.3,4.6892]
[1738488656346,0.03395061,213.33,213.3,5.84383714]
[1738488656548,0.03395061,213.33,213.32,4.6888]
[1738488656747,5.84383714,213.38,213.3,5.84383714]
[1738488656947,10.53133714,213.38,213.3,5.84383714]
[1738488657851,0.03465845,213.36,213.33,4.6885]
[1738488658052,0.03465845,213.36,213.3,5.84383714]
[1738488658250,0.03465845,213.36,213.32,4.71914977]
[1738488658850,5.87849559,213.36,213.32,0.03034977]
[1738488659549,5.84383714,213.34,213.32,0.03034977]
[1738488660658,4.6886,213.33,213.32,0.03034977]
[1738488668057,5.84383714,213.34,213.23,3.014]
[1738488668262,0.03465845,213.36,213.23,3.014]
[1738488668263,4.6899,213.27,213.23,3.014]
[1738488668864,5.84383714,213.28,213.23,7.7047]
[1738488669366,5.87721436,213.28,213.23,7.73504257]
[1738488669764,10.56691436,213.28,213.23,7.73504257]
[1738488670664,5.87721436,213.28,213.23,7.73504257]
[1738488670868,4.6899,213.27,213.23,7.73504257]
[1738488671764,10.56691436,213.28,213.23,7.73504257]
[1738488678369,0.03337722,213.28,213.23,3.04434257]
[1738488678572,0.03337722,213.28,213.27,4.6899]
[1738488679473,5.84383714,213.36,213.26,5.84383714]
[1738488679675,5.84383714,213.36,213.29,5.84383714]
[1738488679877,5.84383714,213.38,213.31,5.84383714]
[1738488680579,0.03386033,213.37,213.32,0.03121972]
[1738488680774,0.03386033,213.37,213.34,4.6884]
[1738488681275,0.03386033,213.37,213.32,0.03121972]
[1738488681578,0.03386033,213.37,213.35,5.84383714]
[1738488682174,0.03386033,213.37,213.36,4.6879]
[1738488683180,5.84383714,213.44,213.35,5.84383714]
[1738488683375,5.84383714,213.46,213.41,4.6868]
[1738488683574,5.84383714,213.48,213.41,5.84383714]
[1738488683977,5.84383714,213.5,213.44,4.6861]
[1738488684377,5.84383714,213.5,213.45,0.03541389]
[1738488684675,0.03527333,213.49,213.45,0.03541389]
[1738488685678,5.84383714,213.48,213.45,0.03541389]
[1738488686879,0.03527333,213.49,213.45,0.03541389]
[1738488687182,0.03527333,213.49,213.45,4.72131389]
[1738488688384,0.03527333,213.49,213.46,4.6856]